fUST/lending_fUST_20250816
["ID","MTS","AMOUNT","RATE_DAILY","PERIOD"]
[379479961,1755310262361,-1011.9,0.00024969,9]
[379479962,1755310262378,-1011.9,0.00024969,9]
[379479963,1755310262388,-1011.9,0.00024969,9]
[379479964,1755310262398,-1011.94759944,0.00024969,9]
[379479965,1755310262408,-460.0,0.00024969,9]
[379479966,1755310262418,-460.0,0.00024969,9]
[379479967,1755310262428,-463.81791509,0.00024969,9]
[379479968,1755310262438,-460.0,0.00024969,9]
[379479969,1755310262447,-460.0,0.00024969,9]
[379479970,1755310262457,-460.0,0.00024969,9]
[379479971,1755310262466,-460.0,0.00024969,9]
[379479972,1755310262475,-301.58398787,0.00024969,9]
[379479973,1755310262485,-460.0,0.00024969,9]
[379479974,1755310262495,-460.0,0.00024969,9]
[379479975,1755310262504,-460.0,0.00024969,9]
[379479976,1755310262513,-460.0,0.00024969,9]
[379479977,1755310262524,-460.0,0.00024969,9]
[379479978,1755310262534,-460.0,0.00024969,9]
[379479979,1755310262543,-410.5093805,0.00024969,9]
[379479980,1755310262553,-237.64734453,0.00024969,9]
[379479981,1755310262563,-460.0,0.00024969,9]
[379479982,1755310262572,-460.0,0.00024969,9]
[379479983,1755310262582,-460.0,0.00024969,9]
[379479984,1755310262592,-460.0,0.00024969,9]
[379479985,1755310262602,-460.0,0.00024969,9]
[379479986,1755310262612,-507.9032252,0.00024969,9]
[379479987,1755310262622,-662.27,0.00024969,9]
[379479988,1755310262632,-662.27,0.00024969,9]
[379479989,1755310262642,-662.27,0.00024969,9]
[379479990,1755310262652,-662.27,0.00024969,9]
[379479991,1755310262663,-662.27,0.00024969,9]
[379479992,1755310262673,-662.44131061,0.00024969,9]
[379479993,1755310262683,-460.0,0.00024969,9]
[379479994,1755310262694,-460.0,0.00024969,9]
[379479995,1755310262703,-460.0,0.00024969,9]
[379479996,1755310262714,-460.0,0.00024969,9]
[379479997,1755310262725,-460.0,0.00024969,9]
[379479998,1755310262735,-460.0,0.00024969,9]
[379479999,1755310262745,-523.8577311,0.00024969,9]
[379480000,1755310262756,-460.0,0.00024969,9]
[379480001,1755310262766,-460.0,0.00024969,9]
[379480002,1755310262776,-460.0,0.00024969,9]
[379480003,1755310262786,-470.91281958,0.00024969,9]
[379480004,1755310262796,-460.0,0.00024969,9]
[379480005,1755310262806,-460.0,0.00024969,9]
[379480006,1755310262816,-460.0,0.00024969,9]
[379480007,1755310262825,-161.00523358,0.00024969,9]
[379480008,1755310262835,-614.63,0.00024969,9]
[379480009,1755310262845,-614.63,0.00024969,9]
[379480010,1755310262856,-614.63,0.00024969,9]
[379480011,1755310262867,-614.63,0.00024969,9]
[379480012,1755310262877,-614.63,0.00024969,9]
[379480013,1755310262887,-614.63,0.00024969,9]
[379480014,1755310262897,-614.63,0.00024969,9]
[379480015,1755310262907,-614.63,0.00024969,9]
[379480016,1755310262918,-614.63,0.00024969,9]
[379480017,1755310262928,-614.63649754,0.00024969,9]
[379480018,1755310262938,-460.0,0.00024969,9]
[379480019,1755310262948,-460.0,0.00024969,9]
[379480020,1755310262958,-460.0,0.00024969,9]
[379480021,1755310262968,-174.25739513,0.00024969,9]
[379480022,1755310262979,-740.5,0.00024969,9]
[379480023,1755310262989,-740.5,0.00024969,9]
[379480024,1755310262999,-740.5,0.00024969,9]
[379480025,1755310263009,-740.5,0.00024969,9]
[379480026,1755310263019,-740.5,0.00024969,9]
[379480027,1755310263028,-740.5,0.00024969,9]
[379480028,1755310263038,-740.5,0.00024969,9]
[379480029,1755310263048,-740.5,0.00024969,9]
[379480030,1755310263058,-740.5,0.00024969,9]
[379480031,1755310263068,-740.61045784,0.00024969,9]
[379480032,1755310263078,-460.0,0.00024969,9]
[379480033,1755310263087,-460.0,0.00024969,9]
[379480034,1755310263097,-460.0,0.00024969,9]
[379480035,1755310263107,-460.0,0.00024969,9]
[379480036,1755310263117,-460.0,0.00024969,9]
[379480037,1755310263127,-571.6213543,0.00024969,9]
[379480038,1755310263137,-613.6,0.00024969,9]
[379480039,1755310263147,-613.6,0.00024969,9]
[379480040,1755310263157,-613.6,0.00024969,9]
[379480041,1755310263168,-613.6,0.00024969,9]
[379480042,1755310263178,-613.6,0.00024969,9]
[379480043,1755310263188,-613.6,0.00024969,9]
[379480044,1755310263198,-613.6,0.00024969,9]
[379480045,1755310263208,-613.6,0.00024969,9]
[379480046,1755310263220,-613.6,0.00024969,9]
[379480047,1755310263229,-613.71178248,0.00024969,9]
[379480048,1755310263240,-4896.45,0.00024969,9]
[379480049,1755310263250,-4896.45,0.00024969,9]
[379480050,1755310263260,-4896.45,0.00024969,9]
[379480051,1755310263270,-4896.45,0.00024969,9]
[379480052,1755310263280,-4896.45,0.00024969,9]
[379480053,1755310263290,-4896.49009989,0.00024969,9]
[379480054,1755310263300,-460.0,0.00024969,9]
[379480055,1755310263311,-460.0,0.00024969,9]
[379480056,1755310263321,-528.0872308,0.00024969,9]
[379480057,1755310263331,-578.24,0.00024969,9]
[379480058,1755310263342,-578.24,0.00024969,9]
[379480059,1755310263354,-578.24,0.00024969,9]
[379480060,1755310263364,-578.24,0.00024969,9]
[379480061,1755310263375,-578.24,0.00024969,9]
[379480062,1755310263387,-578.24,0.00024969,9]
[379480063,1755310263396,-578.24,0.00024969,9]
[379480064,1755310263407,-578.24,0.00024969,9]
[379480065,1755310263417,-578.24,0.00024969,9]
[379480066,1755310263428,-578.38010036,0.00024969,9]
[379480067,1755310263444,-505.07452776,0.00024969,9]
[379480068,1755310263461,-560.52,0.00024969,9]
[379480069,1755310263475,-560.52,0.00024969,9]
[379480070,1755310263491,-560.52,0.00024969,9]
[379480071,1755310263505,-560.52,0.00024969,9]
[379480072,1755310263520,-560.52,0.00024969,9]
[379480073,1755310263535,-560.52,0.00024969,9]
[379480074,1755310263550,-560.52,0.00024969,9]
[379480075,1755310263565,-560.52,0.00024969,9]
[379480076,1755310263579,-560.52,0.00024969,9]
[379480077,1755310263593,-560.72261884,0.00024969,9]
[379480078,1755310263609,-460.0,0.00024969,7]
[379480079,1755310263623,-460.0,0.00024969,7]
[379480080,1755310263634,-460.0,0.00024969,7]
[379480081,1755310263647,-460.0,0.00024969,7]
[379480082,1755310263660,-492.27763515,0.00024969,7]
[379480083,1755310263675,-809.81,0.00024969,9]
[379480084,1755310263691,-809.81,0.00024969,9]
[379480085,1755310263706,-809.81,0.00024969,9]
[379480086,1755310263721,-809.81,0.00024969,9]
[379480087,1755310263734,-809.81,0.00024969,9]
[379480088,1755310263746,-809.81,0.00024969,9]
[379480089,1755310263761,-809.81,0.00024969,9]
[379480090,1755310263776,-809.81,0.00024969,9]
[379480091,1755310263789,-809.81,0.00024969,9]
[379480092,1755310263803,-809.90010846,0.00024969,9]
[379480093,1755310263816,-460.0,0.00024969,9]
[379480094,1755310263829,-460.0,0.00024969,9]
[379480095,1755310263842,-460.0,0.00024969,9]
[379480096,1755310263855,-460.0,0.00024969,9]
[379480097,1755310263868,-460.0,0.00024969,9]
[379480098,1755310263880,-460.0,0.00024969,9]
[379480099,1755310263892,-460.0,0.00024969,9]
[379480100,1755310263905,-460.0,0.00024969,9]
[379480101,1755310263918,-460.0,0.00024969,9]
[379480102,1755310263932,-190.50572066,0.00024969,9]
[379480103,1755310263944,-476.88575918,0.00024969,9]
[379480104,1755310263958,-460.0,0.00024969,9]
[379480105,1755310263970,-460.0,0.00024969,9]
[379480106,1755310263983,-460.0,0.00024969,9]
[379480107,1755310263995,-460.0,0.00024969,9]
[379480108,1755310264008,-460.0,0.00024969,9]
[379480109,1755310264021,-324.68138638,0.00024969,9]
[379480110,1755310264034,-460.0,0.00024969,9]
[379480111,1755310264046,-460.0,0.00024969,9]
[379480112,1755310264060,-460.0,0.00024969,9]
[379480113,1755310264073,-460.0,0.00024969,9]
[379480114,1755310264086,-460.0,0.00024969,9]
[379480115,1755310264099,-601.18564413,0.00024969,9]
[379480116,1755310264112,-212.6503206,0.00024969,9]
[379480117,1755310264125,-464.42,0.00024969,9]
[379480118,1755310264138,-464.42,0.00024969,9]
[379480119,1755310264150,-464.42,0.00024969,9]
[379480120,1755310264164,-464.42,0.00024969,9]
[379480121,1755310264177,-464.42,0.00024969,9]
[379480122,1755310264190,-464.42,0.00024969,9]
[379480123,1755310264203,-464.42,0.00024969,9]
[379480124,1755310264215,-464.42,0.00024969,9]
[379480125,1755310264228,-464.42,0.00024969,9]
[379480126,1755310264252,-464.51487168,0.00024969,9]
[379480127,1755310264275,-151.0,0.00024969,7]
[379480128,1755310264293,-460.0,0.00024969,9]
[379480129,1755310264312,-473.19753984,0.00024969,9]
[379480130,1755310264328,-660.22,0.00024969,9]
[379480131,1755310264343,-660.22,0.00024969,9]
[379480132,1755310264358,-660.22,0.00024969,9]
[379480133,1755310264372,-660.22,0.00024969,9]
[379480134,1755310264385,-660.22,0.00024969,9]
[379480135,1755310264399,-660.43219028,0.00024969,9]
[379480136,1755310264412,-460.0,0.00024969,9]
[379480137,1755310264425,-460.0,0.00024969,9]
[379480138,1755310264438,-580.9062716,0.00024969,9]
[379480139,1755310264451,-500.0,0.00024973,2]
[379480140,1755310264463,-150.7008718,0.00024973,2]
[379480141,1755310264475,-571.54091121,0.00024973,2]
[379480142,1755310264488,-500.0,0.00024973,2]
[379480143,1755310264504,-212.36449193,0.00024973,2]
[379480144,1755310264517,-346.25473474,0.00024973,2]
[379480145,1755310264528,-500.0,0.00024973,2]
[379480146,1755310264543,-601.07143356,0.00024973,2]
[379480147,1755310264556,-150.0,0.00024973,2]
[379480148,1755310264568,-501.23358378,0.00024973,2]
[379480149,1755310264580,-500.0,0.00024973,2]
[379480150,1755310264593,-569.91549638,0.00024973,2]
[379480151,1755310264605,-500.0,0.00024973,2]
[379480152,1755310264618,-500.0,0.00024973,2]
[379480153,1755310264630,-500.83407223,0.00024973,2]
[379480154,1755310264641,-500.0,0.00024973,2]
[379480155,1755310264653,-500.0,0.00024973,2]
[379480156,1755310264665,-500.0,0.00024973,2]
[379480157,1755310264677,-216.58658038,0.00024973,2]
[379480158,1755310264688,-501.06744168,0.00024973,2]
[379480159,1755310264700,-500.0,0.00024973,2]
[379480160,1755310264712,-500.96515293,0.00024973,2]
[379480161,1755310264723,-501.82173274,0.00024973,2]
[379480162,1755310264735,-501.00762181,0.00024973,2]
[379480163,1755310264747,-216.77912109,0.00024973,2]
[379480164,1755310264759,-232.08354597,0.00024973,2]
[379480165,1755310264770,-739.6,0.00024978,9]
[379480166,1755310264783,-617.1,0.00024978,9]
[379480167,1755310264796,-460.0,0.00024978,9]
[379480168,1755310264808,-5508.21,0.00024978,3]
[379480169,1755310264820,-460.0,0.00024978,9]
[379480170,1755310264833,-460.0,0.00024978,9]
[379480171,1755310264845,-460.0,0.00024978,9]
[379480172,1755310264863,-2771.0,0.00024978,9]
[379480173,1755310264875,-10829.88,0.00024978,9]
[379480174,1755310264886,-1010.7,0.00024978,9]
[379480175,1755310264898,-460.0,0.00024978,9]
[379480176,1755310264910,-864.25,0.00024978,9]
[379480177,1755310264923,-460.0,0.00024978,9]
[379480178,1755310264935,-959.42,0.00024978,9]
[379480179,1755310264947,-2842.46,0.00024978,9]
[379480180,1755310264959,-460.0,0.00024978,9]
[379480181,1755310265136,-460.0,0.00024979,9]
[379480182,1755310265163,-460.0,0.00024979,9]
[379480183,1755310265173,-460.0,0.00024979,9]
[379480184,1755310265183,-460.0,0.00024979,9]
[379480185,1755310265192,-460.0,0.00024979,9]
[379480186,1755310265202,-205.9898197,0.00024979,9]
[379480187,1755310265211,-460.0,0.00024979,9]
[379480188,1755310265221,-460.0,0.00024979,9]
[379480189,1755310265230,-460.0,0.00024979,9]
[379480190,1755310265239,-460.0,0.00024979,9]
[379480191,1755310265249,-460.0,0.00024979,9]
[379480192,1755310265259,-468.6882578,0.00024979,9]
[379480193,1755310265268,-460.0,0.00024979,9]
[379480194,1755310265277,-460.0,0.00024979,9]
[379480195,1755310265287,-462.47004733,0.00024979,9]
[379480196,1755310265297,-460.0,0.00024979,9]
[379480197,1755310265306,-460.0,0.00024979,9]
[379480198,1755310265316,-460.0,0.00024979,9]
[379480199,1755310265325,-460.0,0.00024979,9]
[379480200,1755310265335,-460.0,0.00024979,9]
[379480201,1755310265344,-1843.18,0.00024979,9]
[379480202,1755310265356,-460.0,0.00024979,9]
[379480203,1755310265367,-460.0,0.00024979,9]
[379480204,1755310265376,-460.0,0.00024979,9]
[379480205,1755310265386,-460.0,0.00024979,9]
[379480206,1755310265395,-566.77,0.00024979,9]
[379480207,1755310265405,-460.0,0.00024979,9]
[379480208,1755310265414,-460.0,0.00024979,9]
[379480209,1755310265424,-722.74,0.00024979,9]
[379480210,1755310265433,-460.0,0.00024979,9]
[379480211,1755310265443,-460.0,0.00024979,9]
[379480212,1755310265452,-460.0,0.00024979,9]
[379480213,1755310265461,-460.0,0.00024979,9]
[379480214,1755310265471,-460.0,0.00024979,9]
[379480215,1755310265481,-1217.52,0.00024979,9]
[379480216,1755310265490,-460.0,0.00024979,9]
[379480217,1755310265500,-499.43,0.00024979,9]
[379480218,1755310265509,-460.0,0.00024979,9]
[379480219,1755310265518,-460.0,0.00024979,9]
[379480220,1755310265528,-460.0,0.00024979,9]
[379480221,1755310265537,-460.0,0.00024979,9]
[379480222,1755310265547,-460.0,0.00024979,9]
[379480223,1755310265556,-460.0,0.00024979,9]
[379480224,1755310265566,-460.0,0.00024979,9]
[379480225,1755310265576,-460.0,0.00024979,9]
[379480226,1755310265589,-460.0,0.00024979,9]
[379480227,1755310265599,-460.0,0.00024979,9]
[379480228,1755310265620,-461.46,0.00024979,9]
[379480229,1755310265639,-460.0,0.00024979,9]
[379480230,1755310265653,-460.0,0.00024979,9]
[379480231,1755310265663,-460.0,0.00024979,9]
[379480232,1755310265675,-460.0,0.00024979,9]
[379480233,1755310265684,-460.0,0.00024979,9]
[379480234,1755310265694,-739.6,0.00024979,9]
[379480235,1755310265703,-739.6,0.00024979,9]
[379480236,1755310265713,-460.0,0.00024979,9]
[379480237,1755310265723,-460.0,0.00024979,9]
[379480238,1755310265732,-617.1,0.00024979,9]
[379480239,1755310265744,-617.1,0.00024979,9]
[379480240,1755310265754,-460.0,0.00024979,9]
[379480241,1755310265764,-526.71,0.00024979,9]
[379480242,1755310265775,-460.0,0.00024979,9]
[379480243,1755310265786,-460.0,0.00024979,9]
[379480244,1755310265798,-637.63,0.00024979,9]
[379480245,1755310265808,-460.0,0.00024979,9]
[379480246,1755310265819,-5508.21,0.00024979,3]
[379480247,1755310265831,-5508.21,0.00024979,3]
[379480248,1755310265842,-460.0,0.00024979,9]
[379480249,1755310265852,-460.0,0.00024979,9]
[379480250,1755310265863,-460.0,0.00024979,9]
[379480251,1755310265874,-460.0,0.00024979,9]
[379480252,1755310265884,-460.0,0.00024979,9]
[379480253,1755310265893,-465.7,0.00024979,9]
[379480254,1755310265904,-460.0,0.00024979,9]
[379480255,1755310265918,-460.0,0.00024979,9]
[379480256,1755310265927,-460.0,0.00024979,9]
[379480257,1755310265937,-460.0,0.00024979,9]
[379480258,1755310265947,-460.0,0.00024979,9]
[379480259,1755310265957,-968.31,0.00024979,9]
[379480260,1755310265966,-460.0,0.00024979,9]
[379480261,1755310265976,-678.19,0.00024979,9]
[379480262,1755310265985,-2771.0,0.00024979,9]
[379480263,1755310265996,-2771.0,0.00024979,9]
[379480264,1755310266006,-460.0,0.00024979,9]
[379480265,1755310266016,-463.26121315,0.00024979,9]
[379480266,1755310266026,-460.0,0.00024979,9]
[379480267,1755310266039,-10829.88,0.00024979,9]
[379480268,1755310266049,-10829.88,0.00024979,9]
[379480269,1755310266059,-670.35,0.00024979,9]
[379480270,1755310266069,-1010.7,0.00024979,9]
[379480271,1755310266079,-1010.7,0.00024979,9]
[379480272,1755310266089,-582.42055985,0.00024979,9]
[379480273,1755310266099,-461.35567931,0.00024979,9]
[379480274,1755310266109,-460.0,0.00024979,9]
[379480275,1755310266119,-460.0,0.00024979,9]
[379480276,1755310266128,-460.0,0.00024979,9]
[379480277,1755310266139,-460.0,0.00024979,9]
[379480278,1755310266149,-864.25,0.00024979,9]
[379480279,1755310266158,-864.25,0.00024979,9]
[379480280,1755310266171,-461.67706893,0.00024979,9]
[379480281,1755310266182,-460.0,0.00024979,9]
[379480282,1755310266192,-460.0,0.00024979,9]
[379480283,1755310266203,-569.54,0.00024979,9]
[379480284,1755310266213,-460.0,0.00024979,9]
[379480285,1755310266223,-460.0,0.00024979,9]
[379480286,1755310266232,-462.31215868,0.00024979,9]
[379480287,1755310266242,-460.0,0.00024979,9]
[379480288,1755310266252,-460.0,0.00024979,9]
[379480289,1755310266261,-959.42,0.00024979,9]
[379480290,1755310266271,-959.42,0.00024979,9]
[379480291,1755310266280,-2842.46,0.00024979,9]
[379480292,1755310266289,-2842.46,0.00024979,9]
[379480293,1755310266298,-460.0,0.00024979,9]
[379480294,1755310266309,-151.0,0.00024979,7]
[379480295,1755310266319,-724.77,0.00024979,9]
[379480296,1755310266329,-460.0,0.00024979,9]
[379480297,1755310266338,-460.0,0.00024979,9]
[379480298,1755310266347,-460.0,0.00024979,9]
[379480299,1755310266360,-460.0,0.0002498,9]
[379480300,1755310266370,-460.0,0.0002498,9]
[379480301,1755310266379,-460.0,0.0002498,9]
[379480302,1755310266388,-460.0,0.0002498,9]
[379480303,1755310266398,-460.57075349,0.0002498,9]
[379480304,1755310266408,-460.0,0.0002498,9]
[379480305,1755310266420,-460.0,0.0002498,9]
[379480306,1755310266430,-460.0,0.0002498,9]
[379480307,1755310266439,-460.45368327,0.0002498,9]
[379480308,1755310266449,-167.02097705,0.0002498,9]
[379480309,1755310266459,-460.3305175,0.0002498,9]
[379480310,1755310266469,-460.0,0.0002498,9]
[379480311,1755310266478,-461.74482411,0.0002498,9]
[379480312,1755310266488,-460.0,0.0002498,9]
[379480313,1755310266498,-460.0,0.0002498,9]
[379480314,1755310266507,-460.0,0.0002498,9]
[379480315,1755310266517,-460.0,0.0002498,9]
[379480316,1755310266528,-460.0,0.0002498,9]
[379480317,1755310266539,-460.0,0.0002498,9]
[379480318,1755310266548,-460.0,0.0002498,9]
[379480319,1755310266557,-460.0,0.0002498,9]
[379480320,1755310266567,-460.0,0.0002498,9]
[379480321,1755310266576,-460.0,0.0002498,9]
[379480322,1755310266585,-460.0,0.0002498,9]
[379480323,1755310266594,-460.0,0.0002498,9]
[379480324,1755310266603,-13.67256062,0.0002498,5]
[379480325,1755310266926,-1018.45,0.00024657,9]
[379480326,1755310266936,-460.0,0.00024849,9]
[379480327,1755310266945,-446.32743938,0.0002498,5]
[379480328,1755310266955,-460.0,0.0002498,9]
[379480329,1755310266965,-460.0,0.0002498,9]
[379480330,1755310266974,-460.0,0.0002498,9]
[379480331,1755310266983,-460.6241633,0.0002498,9]
[379480332,1755310266992,-460.0,0.0002498,9]
[379480333,1755310267002,-460.21739733,0.0002498,9]
[379480334,1755310267011,-460.0,0.0002498,9]
[379480335,1755310267020,-460.0,0.0002498,9]
[379480336,1755310267030,-460.0,0.0002498,9]
[379480337,1755310267039,-545.44,0.0002498,9]
[379480338,1755310267048,-460.44672487,0.0002498,9]
[379480339,1755310267058,-460.0,0.0002498,9]
[379480340,1755310267067,-460.0,0.0002498,9]
[379480341,1755310267076,-460.21981311,0.0002498,9]
[379480342,1755310267085,-198.98189979,0.0002498,9]
[379480343,1755310267447,-1902.78,0.00024657,9]
[379480344,1755310267457,-1018.45,0.00024657,9]
[379480345,1755310267466,-1902.78,0.00024657,9]
[379480346,1755310267476,-1018.45,0.00024657,9]
[379480347,1755310267491,-1902.78,0.00024657,9]
[379480348,1755310267511,-1018.45,0.00024657,9]
[379480349,1755310267530,-1018.45,0.00024657,9]
[379480350,1755310267550,-1902.78,0.00024657,9]
[379480351,1755310267570,-1902.78,0.00024657,9]
[379480352,1755310267580,-636.2437285,0.00024657,9]
[379480353,1755310267592,-1266.5362715,0.00024657,9]
[379480354,1755310267602,-1018.45,0.00024699,9]
[379480355,1755310267612,-135.61450708,0.00024899,9]
[379480356,1755310268029,-150.0,0.0002001,2]
[379480357,1755310268039,-290.5,0.00021829,2]
[379480358,1755310268049,-435.75,0.00023648,2]
[379480359,1755310268058,-841.03,0.0002459,10]
[379480360,1755310268067,-500.0,0.00024599,2]
[379480361,1755310268077,-500.0,0.00024599,2]
[379480362,1755310268087,-39.78,0.00024599,2]
[379480363,1755310268098,-311.21745891,0.00024599,2]
[379480364,1755310268108,-501.96326069,0.00024599,2]
[379480365,1755310268118,-500.0,0.00024599,2]
[379480366,1755310268127,-500.0,0.00024599,2]
[379480367,1755310268136,-246.72951092,0.00024599,2]
[379480368,1755310268156,-139.05738086,0.00024599,2]
[379480369,1755310268167,-411.41120717,0.00024599,2]
[379480370,1755310268179,-88.58879283,0.00024599,2]
[379480371,1755310268188,-349.93477702,0.00024599,2]
[379480372,1755310268520,-95.64462214,0.00024599,2]
[379480373,1755310268530,-176.33841815,0.00024657,9]
[379480374,1755310268541,-1726.44158185,0.00024657,9]
[379480375,1755310268551,-1902.78,0.00024657,9]
[379480376,1755310268561,-1902.78,0.00024657,9]
[379480377,1755310268571,-1370.00261016,0.00024657,9]
[379480378,1755310268594,-532.77738984,0.00024657,9]
[379480379,1755310268604,-20.23404016,0.00024657,9]
[379480408,1755311133938,160.596895,0.00013699,2]
[379480411,1755311225132,-511.79611459,0.000199,2]
[379480412,1755311225154,-150.0,0.00019995,2]
[379480413,1755311225174,-160.0,0.00020407,2]
[379480414,1755311225198,-511.79611456,0.00020408,2]
[379480415,1755311225220,-511.79611456,0.00020916,2]
[379480416,1755311225241,-500.0,0.0002096,2]
[379480417,1755311225266,-511.79611456,0.00021424,2]
[379480418,1755311225288,-278.78,0.00021788,2]
[379480419,1755311225310,-511.79611456,0.00021932,2]
[379480420,1755311225330,-500.0,0.00022064,2]
[379480421,1755311225350,-151.0,0.0002244,2]
[379480422,1755311225371,-511.79611456,0.0002244,2]
[379480423,1755311225393,-37.72503825,0.00022948,2]
[379480424,1755311230313,-474.07107631,0.00022948,2]
[379480425,1755311230334,-124.82686988,0.00023167,2]
[379480426,1755311242119,-327.55664405,0.00023167,2]
[379480427,1755311244133,-47.61648607,0.00023167,2]
[379480428,1755311244156,-325.64782775,0.00023456,2]
[379480436,1755311314810,165.89399279,0.00025,120]
[379480445,1755311358141,-162.47309552,0.00019833,2]
[379480446,1755311358166,-150.0,0.00020033,2]
[379480447,1755311358189,-140.33002909,0.00021841,2]
[379480492,1755311432602,-219.27684295,0.000199,2]
[379480493,1755311432612,-150.0,0.00020007,2]
[379480495,1755311432621,-219.27684293,0.00021742,2]
[379480498,1755311432631,-261.13,0.00021825,2]
[379480501,1755311432640,-186.14828681,0.00023456,2]
[379480504,1755311432649,-219.27684293,0.00023583,2]
[379480506,1755311432658,-391.7,0.00023644,2]
[379480508,1755311432671,-511.79611456,0.00023964,2]
[379480510,1755311432681,-501.91613766,0.00024325,2]
[379480511,1755311432690,-219.90366275,0.00024473,2]
[379480512,1755311432706,-291.89245181,0.00024473,2]
[379480513,1755311432717,-300.0,0.00024477,2]
[379480514,1755311432725,-955.25499151,0.00024477,2]
[379480525,1755311438642,-849.35611049,0.00021754,2]
[379480526,1755311438653,-129.74500849,0.00024477,2]
[379480527,1755311438664,-200.0,0.00024478,20]
[379480528,1755311438676,-200.0,0.00024478,20]
[379480529,1755311438686,-200.0,0.00024478,20]
[379480530,1755311438695,-200.0,0.00024478,20]
[379480531,1755311438704,-200.0,0.00024478,20]
[379480532,1755311438715,-200.0,0.00024478,20]
[379480533,1755311438724,-200.0,0.00024478,20]
[379480534,1755311438734,-200.0,0.00024478,20]
[379480535,1755311438744,-500.0,0.00024498,2]
[379480536,1755311438754,-20516.65168483,0.00024499,2]
[379480537,1755311438763,-160.0,0.00024516,2]
[379480538,1755311438773,-596.43740358,0.00024557,2]
[379480539,1755311438782,-716.45707654,0.00024557,2]
[379480540,1755311438791,-151.0,0.00024599,2]
[379480541,1755311438800,-151.76082046,0.00024599,2]
[379480542,1755311438809,-500.0,0.00024602,2]
[379480543,1755311438818,-508.79,0.00024647,3]
[379480544,1755311438827,-254.39,0.00024647,3]
[379480545,1755311438837,-763.22,0.00024647,3]
[379480546,1755311438846,-700.86,0.00024647,10]
[379480547,1755311438855,-153.97632131,0.00024656,2]
[379480548,1755311438865,-216.17548879,0.00024656,2]
[379480549,1755311438874,-201.0723121,0.00024656,2]
[379480550,1755311438883,-460.0,0.00024657,9]
[379480552,1755311438893,-453.01478594,0.00024657,9]
[379480554,1755311438903,-460.32906284,0.00024657,9]
[379480555,1755311438913,-460.0,0.00024657,9]
[379480556,1755311438923,-460.0,0.00024657,9]
[379480557,1755311438934,-356.654654,0.00024657,9]
[379480558,1755311438943,-460.0,0.00024657,9]
[379480559,1755311438953,-460.0,0.00024657,9]
[379480560,1755311438963,-460.0,0.00024657,9]
[379480561,1755311438974,-460.0,0.00024657,9]
[379480562,1755311438984,-460.0,0.00024657,9]
[379480563,1755311438994,-460.0,0.00024657,9]
[379480564,1755311439004,-460.0,0.00024657,9]
[379480565,1755311439013,-460.0,0.00024657,9]
[379480566,1755311439023,-460.0,0.00024657,9]
[379480567,1755311439033,-460.0,0.00024657,9]
[379480568,1755311439044,-460.0,0.00024657,9]
[379480569,1755311439054,-460.0,0.00024657,9]
[379480570,1755311439064,-460.0,0.00024657,9]
[379480571,1755311439073,-460.0,0.00024657,9]